fUSD/lending_fUSD_20250322
["ID","MTS","AMOUNT","RATE_DAILY","PERIOD"]
[356542167,1742637059138,-1500.0,0.00047397,120]
[356542168,1742637059147,-813.54,0.00047397,120]
[356542169,1742637059156,-570.18,0.00047397,120]
[356542170,1742637059165,-500.0,0.00047397,120]
[356542171,1742637059174,-500.0,0.00047397,120]
[356542172,1742637059183,-500.0,0.00047397,120]
[356542173,1742637059192,-500.0,0.00047397,120]
[356542174,1742637059201,-621.41,0.00047397,120]
[356542175,1742637059210,-300.0,0.00047397,120]
[356542176,1742637059219,-713.81,0.00047397,120]
[356542177,1742637059228,-500.0,0.00047397,120]
[356542178,1742637059238,-500.0,0.00047397,120]
[356542179,1742637059247,-1159.44,0.00047397,10]
[356542180,1742637059256,-639.03,0.00047397,120]
[356542181,1742637059266,-500.0,0.00047397,120]
[356542182,1742637059275,-521.66,0.00047397,120]
[356542183,1742637059284,-500.0,0.00047397,120]
[356542184,1742637059293,-1837.38,0.00047397,120]
[356542185,1742637059303,-500.0,0.00047397,120]
[356542186,1742637059312,-500.0,0.00047397,120]
[356542187,1742637059325,-500.0,0.00047397,120]
[356542188,1742637059334,-500.0,0.00047397,120]
[356542189,1742637059343,-500.0,0.00047397,120]
[356542190,1742637059352,-500.0,0.00047397,120]
[356542191,1742637059361,-872.68,0.00047397,120]
[356542192,1742637059370,-500.0,0.00047397,120]
[356542193,1742637059379,-500.0,0.00047397,120]
[356542194,1742637059389,-500.0,0.00047397,120]
[356542195,1742637059398,-815.59,0.00047397,120]
[356542196,1742637059407,-500.0,0.00047397,120]
[356542197,1742637059416,-564.59,0.00047397,120]
[356542198,1742637059425,-500.0,0.00047397,120]
[356542199,1742637059434,-500.0,0.00047397,120]
[356542200,1742637059444,-500.0,0.00047397,120]
[356542201,1742637059453,-500.0,0.00047397,120]
[356542202,1742637059461,-500.0,0.00047397,120]
[356542203,1742637059470,-629.6,0.00047397,120]
[356542204,1742637059479,-1219.87,0.00047397,120]
[356542205,1742637059488,-500.0,0.00047397,120]
[356542206,1742637059497,-511.1,0.00047397,120]
[356542207,1742637059506,-500.0,0.00047397,120]
[356542208,1742637059515,-500.0,0.00047397,120]
[356542209,1742637059524,-500.0,0.00047397,120]
[356542210,1742637059533,-500.0,0.00047397,120]
[356542211,1742637059543,-603.18402118,0.00047397,120]
[356542212,1742637059552,-973.06,0.00047397,120]
[356542213,1742637059561,-500.0,0.00047397,120]
[356542214,1742637059571,-624.39,0.00047397,120]
[356542215,1742637059580,-500.0,0.00047397,120]
[356542216,1742637059589,-226.55979079,0.00047397,120]
[356542217,1742637059598,-500.0,0.00047397,120]
[356542218,1742637059607,-1923.34,0.00047397,120]
[356542219,1742637059616,-500.0,0.00047397,120]
[356542220,1742637059625,-820.19,0.00047397,120]
[356542221,1742637059634,-564.23,0.00047397,120]
[356542222,1742637059643,-665.21,0.00047397,120]
[356542223,1742637059652,-500.0,0.00047397,120]
[356542224,1742637059661,-500.0,0.00047397,120]
[356542225,1742637059670,-1241.85,0.00047397,120]
[356542226,1742637059679,-500.0,0.00047397,120]
[356542227,1742637059688,-500.0,0.00047397,120]
[356542228,1742637059697,-619.76,0.00047397,120]
[356542229,1742637059706,-500.0,0.00047397,120]
[356542230,1742637059715,-500.0,0.00047397,120]
[356542231,1742637059728,-591.13,0.00047397,120]
[356542232,1742637059737,-500.0,0.00047397,60]
[356542233,1742637059747,-500.0,0.00047397,120]
[356542234,1742637059756,-500.0,0.00047397,120]
[356542235,1742637059765,-611.96,0.00047397,120]
[356542236,1742637059775,-500.0,0.00047397,120]
[356542237,1742637059784,-645.8,0.00047397,120]
[356542238,1742637059793,-529.2,0.00047397,120]
[356542239,1742637059802,-500.0,0.00047397,120]
[356542240,1742637059811,-601.81,0.00047397,120]
[356542241,1742637059820,-641.64,0.00047397,120]
[356542242,1742637059830,-640.55,0.00047397,120]
[356542243,1742637059839,-500.0,0.00047397,120]
[356542244,1742637059848,-386.07905273,0.00047397,120]
[356542245,1742637059857,-500.0,0.00047397,120]
[356542246,1742637059866,-627.71,0.00047397,120]
[356542247,1742637059876,-701.19,0.00047397,120]
[356542248,1742637059885,-1353.99,0.00047397,120]
[356542249,1742637059894,-500.0,0.00047397,120]
[356542250,1742637059903,-500.0,0.00047397,120]
[356542251,1742637059912,-500.0,0.00047397,120]
[356542252,1742637059921,-500.0,0.00047397,120]
[356542253,1742637059930,-658.79,0.00047397,120]
[356542254,1742637059939,-500.0,0.00047397,120]
[356542255,1742637059948,-1518.81,0.00047397,120]
[356542256,1742637059957,-500.0,0.00047397,120]
[356542257,1742637059966,-1579.16,0.00047397,120]
[356542258,1742637059976,-500.0,0.00047397,120]
[356542259,1742637059985,-500.0,0.00047397,120]
[356542260,1742637059994,-842.72,0.00047397,120]
[356542261,1742637060003,-500.0,0.00047397,120]
[356542262,1742637060012,-500.0,0.00047397,120]
[356542263,1742637060021,-1920.4,0.00047397,120]
[356542264,1742637060030,-500.0,0.00047397,120]
[356542265,1742637060039,-500.0,0.00047397,120]
[356542266,1742637060049,-500.0,0.00047397,120]
[356542267,1742637060058,-500.0,0.00047397,120]
[356542268,1742637060067,-5245.81,0.00047397,120]
[356542269,1742637060077,-500.0,0.00047397,120]
[356542270,1742637060086,-500.0,0.00047397,120]
[356542271,1742637060094,-2131.02,0.00047397,120]
[356542272,1742637060104,-500.0,0.00047397,120]
[356542273,1742637060113,-983.72,0.00047397,120]
[356542274,1742637060121,-500.0,0.00047397,120]
[356542275,1742637060132,-500.0,0.00047397,120]
[356542276,1742637060142,-500.0,0.00047397,120]
[356542277,1742637060151,-1445.99,0.00047397,120]
[356542278,1742637060160,-585.87,0.00047397,120]
[356542279,1742637060169,-689.75,0.00047397,120]
[356542280,1742637060180,-500.0,0.00047397,120]
[356542281,1742637060190,-500.0,0.00047397,120]
[356542282,1742637060200,-846.6,0.00047397,120]
[356542283,1742637060210,-587.36,0.00047397,120]
[356542284,1742637060219,-635.78,0.00047397,120]
[356542285,1742637060230,-1413.44,0.00047397,120]
[356542286,1742637060240,-4235.9,0.00047397,2]
[356542287,1742637060250,-500.0,0.00047397,120]
[356542288,1742637060259,-500.0,0.00047397,120]
[356542289,1742637060269,-500.0,0.00047397,120]
[356542290,1742637060278,-1454.51,0.00047397,120]
[356542291,1742637060287,-500.0,0.00047397,120]
[356542292,1742637060296,-500.0,0.00047397,120]
[356542293,1742637060305,-500.0,0.00047397,120]
[356542294,1742637060316,-970.54,0.00047397,120]
[356542295,1742637060326,-586.12,0.00047397,120]
[356542296,1742637060335,-500.0,0.00047397,120]
[356542297,1742637060344,-635.48,0.00047397,120]
[356542298,1742637060355,-996.39,0.00047397,120]
[356542299,1742637060364,-647.73,0.00047397,120]
[356542300,1742637060373,-1824.31,0.00047397,120]
[356542301,1742637060382,-833.59,0.00047397,120]
[356542302,1742637060394,-500.0,0.00047397,120]
[356542303,1742637060403,-500.0,0.00047397,120]
[356542304,1742637060412,-809.31,0.00047397,120]
[356542305,1742637060422,-2000.27,0.00047397,120]
[356542306,1742637060431,-1128.13,0.00047397,120]
[356542307,1742637060441,-205.85,0.00047397,7]
[356542308,1742637060451,-2750.71,0.00047397,120]
[356542309,1742637060460,-500.0,0.00047397,120]
[356542310,1742637060470,-500.0,0.00047397,120]
[356542311,1742637060479,-500.0,0.00047397,120]
[356542312,1742637060489,-972.4,0.00047397,120]
[356542313,1742637060499,-912.87,0.00047397,120]
[356542314,1742637060508,-3375.17,0.00047397,120]
[356542315,1742637060518,-558.47,0.00047397,120]
[356542316,1742637060527,-1367.27,0.00047397,120]
[356542317,1742637060551,-743.38,0.00047397,120]
[356542318,1742637060565,-520.84,0.00047397,120]
[356542319,1742637060576,-500.0,0.00047397,120]
[356542320,1742637060585,-1219.57,0.00047397,120]
[356542321,1742637060594,-500.0,0.00047397,120]
[356542322,1742637060604,-2818.72,0.00047397,120]
[356542323,1742637060613,-500.0,0.00047397,120]
[356542324,1742637060622,-825.87,0.00047397,120]
[356542325,1742637060631,-500.0,0.00047397,120]
[356542326,1742637060642,-635.13,0.00047397,120]
[356542327,1742637060651,-606.96,0.00047397,120]
[356542328,1742637060660,-1518.17,0.00047397,30]
[356542329,1742637060670,-827.5,0.00047397,120]
[356542330,1742637060679,-695.68,0.00047397,120]
[356542331,1742637060688,-666.85,0.00047397,120]
[356542332,1742637060698,-500.0,0.00047397,120]
[356542333,1742637060707,-500.0,0.00047397,120]
[356542334,1742637060716,-1356.69,0.00047397,7]
[356542335,1742637060725,-1736.83,0.00047397,120]
[356542336,1742637060735,-913.27,0.00047397,120]
[356542337,1742637060744,-599.99,0.00047397,120]
[356542338,1742637060754,-500.0,0.00047397,120]
[356542339,1742637060763,-500.0,0.00047397,120]
[356542340,1742637060772,-527.15,0.00047397,120]
[356542341,1742637060781,-500.0,0.00047397,120]
[356542342,1742637060790,-597.23,0.00047397,120]
[356542343,1742637060799,-501.82,0.00047397,120]
[356542344,1742637060808,-1106.0,0.00047397,120]
[356542345,1742637060817,-882.82,0.00047397,120]
[356542346,1742637060827,-1127.56,0.00047397,120]
[356542347,1742637060835,-500.0,0.00047397,120]
[356542348,1742637060845,-1089.93,0.00047397,7]
[356542349,1742637060854,-500.0,0.00047397,120]
[356542350,1742637060864,-502.2,0.00047397,120]
[356542351,1742637060873,-500.0,0.00047397,120]
[356542352,1742637060882,-1068.57,0.00047397,120]
[356542353,1742637060892,-1131.58,0.00047397,120]
[356542354,1742637060901,-529.97,0.00047397,120]
[356542355,1742637060910,-500.0,0.00047397,120]
[356542356,1742637060919,-559.18,0.00047397,120]
[356542357,1742637060928,-500.0,0.00047397,120]
[356542358,1742637060938,-1578.59,0.00047397,120]
[356542359,1742637060947,-375.99559081,0.00047397,120]
[356542360,1742637060957,-5060.41,0.00047397,120]
[356542361,1742637060966,-500.0,0.00047397,120]
[356542362,1742637060975,-500.0,0.00047397,120]
[356542363,1742637060984,-938.19,0.00047397,120]
[356542364,1742637060993,-567.38,0.00047397,120]
[356542365,1742637061002,-617.69,0.00047397,120]
[356542366,1742637061011,-1439.24,0.00047397,120]
[356542367,1742637061020,-1288.21,0.00047397,120]
[356542368,1742637061030,-500.0,0.00047397,120]
[356542369,1742637061038,-3623.73,0.00047397,120]
[356542370,1742637061047,-1583.29,0.00047397,120]
[356542371,1742637061056,-1914.19,0.00047397,120]
[356542372,1742637061065,-500.0,0.00047397,120]
[356542373,1742637061074,-1724.46,0.00047397,120]
[356542374,1742637061083,-2003.91,0.00047397,100]
[356542375,1742637061092,-150.0,0.00047397,60]
[356542376,1742637061101,-1585.84,0.00047397,120]
[356542377,1742637061110,-500.0,0.00047397,120]
[356542378,1742637061119,-2253.09,0.00047397,120]
[356542379,1742637061128,-500.0,0.00047397,120]
[356542380,1742637061137,-500.0,0.00047397,120]
[356542381,1742637061147,-645.37,0.00047397,120]
[356542382,1742637061156,-691.36,0.00047397,120]
[356542383,1742637061166,-817.6,0.00047397,120]
[356542384,1742637061176,-523.41,0.00047397,120]
[356542385,1742637061185,-1609.26,0.00047397,120]
[356542386,1742637061194,-1181.24,0.00047397,120]
[356542387,1742637061203,-1857.45,0.00047397,120]
[356542388,1742637061212,-592.73,0.00047397,120]
[356542389,1742637061221,-1111.56,0.00047397,120]
[356542390,1742637061230,-500.0,0.00047397,120]
[356542391,1742637061239,-500.0,0.00047397,120]
[356542392,1742637061249,-1095.08,0.00047397,120]
[356542393,1742637061258,-1041.52,0.00047397,120]
[356542394,1742637061267,-500.0,0.00047397,120]
[356542395,1742637061277,-624.9,0.00047397,120]
[356542396,1742637061286,-1072.96732437,0.00047397,28]
[356542397,1742637061295,-796.13,0.00047397,120]
[356542398,1742637061304,-500.0,0.00047397,120]
[356542399,1742637061315,-751.81,0.00047397,120]
[356542400,1742637061326,-722.59,0.00047397,120]
[356542401,1742637061335,-500.0,0.00047397,120]
[356542402,1742637061344,-554.28,0.00047397,120]
[356542403,1742637061355,-555.78,0.00047397,120]
[356542404,1742637061364,-500.0,0.00047397,120]
[356542405,1742637061373,-3273.79,0.00047397,120]
[356542406,1742637061383,-2930.96,0.00047397,120]
[356542407,1742637061394,-1052.7,0.00047397,120]
[356542408,1742637061404,-504.22,0.00047397,120]
[356542409,1742637061413,-500.0,0.00047397,120]
[356542410,1742637061422,-1485.55,0.00047397,120]
[356542411,1742637061432,-504.42,0.00047397,120]
[356542412,1742637061441,-500.0,0.00047397,120]
[356542413,1742637061450,-657.13,0.00047397,120]
[356542414,1742637061459,-1080.77,0.00047397,120]
[356542415,1742637061468,-500.0,0.00047397,120]
[356542416,1742637061478,-500.0,0.00047397,120]
[356542417,1742637061487,-517.31,0.00047397,120]
[356542418,1742637061496,-760.27,0.00047397,120]
[356542419,1742637061505,-899.53,0.00047397,120]
[356542420,1742637061514,-500.0,0.00047397,120]
[356542421,1742637061523,-500.0,0.00047397,120]
[356542422,1742637061532,-692.39,0.00047397,120]
[356542423,1742637061541,-500.0,0.00047397,120]
[356542424,1742637061550,-500.0,0.00047397,120]
[356542425,1742637061559,-555.67,0.00047397,120]
[356542426,1742637061568,-1026.62,0.00047397,120]
[356542427,1742637061577,-500.0,0.00047397,120]
[356542428,1742637061586,-500.0,0.00047397,120]
[356542429,1742637061595,-1504.12,0.00047397,120]
[356542430,1742637061604,-655.7,0.00047397,120]
[356542431,1742637061613,-500.0,0.00047397,120]
[356542432,1742637061623,-668.14,0.00047397,120]
[356542433,1742637061631,-500.0,0.00047397,20]
[356542434,1742637061641,-529.96,0.00047397,120]
[356542435,1742637061650,-500.0,0.00047397,120]
[356542436,1742637061660,-56672.48,0.00047397,120]
[356542437,1742637061669,-1785.62,0.00047397,120]
[356542438,1742637061679,-500.0,0.00047397,120]
[356542439,1742637061688,-874.3,0.00047397,120]
[356542440,1742637061698,-500.0,0.00047397,120]
[356542441,1742637061707,-892.9,0.00047397,120]
[356542442,1742637061716,-507.98,0.00047397,120]
[356542443,1742637061726,-767.43,0.00047397,120]
[356542444,1742637061735,-818.49,0.00047397,120]
[356542445,1742637061745,-574.58,0.00047397,120]
[356542446,1742637061763,-622.98,0.00047397,120]
[356542447,1742637061772,-500.0,0.00047397,120]
[356542448,1742637061782,-1187.99,0.00047397,120]
[356542449,1742637061791,-500.0,0.00047397,120]
[356542450,1742637061801,-594.34,0.00047397,120]
[356542451,1742637061811,-500.0,0.00047397,120]
[356542452,1742637061820,-724.76,0.00047397,120]
[356542453,1742637061831,-500.0,0.00047397,120]
[356542454,1742637061840,-554.79,0.00047397,120]
[356542455,1742637061851,-500.0,0.00047397,120]
[356542456,1742637061860,-864.88,0.00047397,120]
[356542457,1742637061870,-664.62,0.00047397,120]
[356542458,1742637061880,-870.55,0.00047397,120]
[356542459,1742637061889,-500.0,0.00047397,120]
[356542460,1742637061900,-3152.52,0.00047397,120]
[356542461,1742637061910,-500.0,0.00047397,120]
[356542462,1742637061920,-1001.37,0.00047397,120]
[356542463,1742637061930,-500.0,0.00047397,120]
[356542464,1742637061940,-57084.90040432,0.00047407,15]
[356542465,1742637061950,-152.0,0.00047479,3]
[356542466,1742637061959,-154.00443527,0.000475,120]
[356542467,1742637061969,-156.72955192,0.00047529,120]
[356542468,1742637061979,-219.29507923,0.00047608,28]
[356542469,1742637061988,-5368.0,0.00047644,120]
[356542470,1742637061998,-500.0,0.0004767,120]
[356542471,1742637062008,-500.0,0.0004767,120]
[356542472,1742637062017,-500.0,0.0004767,120]
[356542473,1742637062027,-644.01,0.0004767,120]
[356542474,1742637062036,-644.01,0.0004767,120]
[356542475,1742637062045,-904.785999,0.00047671,120]
[356542476,1742637062055,-733.844647,0.00047671,120]
[356542477,1742637062065,-500.0,0.00047671,120]
[356542478,1742637062074,-500.0,0.00047671,120]
[356542479,1742637062084,-500.0,0.00047671,120]
[356542480,1742637062094,-739.16,0.00047671,120]
[356542481,1742637062103,-500.0,0.00047671,120]
[356542482,1742637062112,-500.0,0.00047671,120]
[356542483,1742637062122,-500.0,0.00047671,120]
[356542484,1742637062131,-500.0,0.00047671,120]
[356542485,1742637062141,-950.82,0.00047671,120]
[356542486,1742637062151,-500.0,0.00047671,120]
[356542487,1742637062161,-517.63,0.00047671,120]
[356542488,1742637062170,-500.0,0.00047671,120]
[356542489,1742637062180,-500.0,0.00047671,120]
[356542490,1742637062190,-372.84507842,0.00047671,120]
[356542491,1742637062200,-629.16921707,0.00047671,120]
[356542492,1742637062210,-1049.72,0.00047671,120]
[356542493,1742637062219,-653.69,0.00047671,120]
[356542494,1742637062229,-907.89,0.00047671,120]
[356542495,1742637062239,-600.62,0.00047671,120]
[356542496,1742637062249,-178.02537345,0.00047671,120]
[356542497,1742637062258,-500.0,0.00047671,120]
[356542498,1742637062269,-500.0,0.00047671,120]
[356542499,1742637062279,-500.0,0.00047671,120]
[356542500,1742637062289,-159.54918229,0.00047671,120]
[356542501,1742637062298,-500.0,0.00047671,120]
[356542502,1742637062308,-459.35826469,0.00047671,120]
[356542503,1742637062319,-500.0,0.00047671,120]
[356542504,1742637062330,-500.0,0.00047671,120]
[356542505,1742637062341,-500.0,0.00047671,120]
[356542506,1742637062352,-500.0,0.00047671,120]
[356542507,1742637062362,-500.0,0.00047671,120]
[356542508,1742637062374,-500.0,0.00047671,120]
[356542509,1742637062385,-500.0,0.00047671,120]
[356542510,1742637062395,-501.22,0.00047671,120]
[356542511,1742637062407,-500.0,0.00047671,120]
[356542512,1742637062418,-500.0,0.00047671,120]
[356542513,1742637062428,-500.0,0.00047671,120]
[356542514,1742637062438,-761.07,0.00047671,120]
[356542515,1742637062448,-956.79,0.00047671,120]
[356542516,1742637062457,-500.0,0.00047671,120]
[356542517,1742637062470,-500.0,0.00047671,120]
[356542518,1742637062480,-500.0,0.00047671,120]
[356542519,1742637062489,-963.36,0.00047671,60]
[356542520,1742637062500,-782.21,0.00047671,120]
[356542521,1742637062510,-500.0,0.00047671,120]
[356542522,1742637062520,-584.06,0.00047671,120]
[356542523,1742637062530,-500.0,0.00047671,120]
[356542524,1742637062540,-500.0,0.00047671,2]
[356542525,1742637062550,-673.59,0.00047671,120]
[356542526,1742637062560,-500.0,0.00047671,120]
[356542527,1742637062570,-502.51,0.00047671,120]
[356542528,1742637062580,-500.0,0.00047671,120]
[356542529,1742637062590,-205.90159671,0.00047671,120]
[356542530,1742637062600,-1473.31,0.00047671,120]
[356542531,1742637062611,-500.0,0.00047671,120]
[356542532,1742637062621,-500.0,0.00047671,120]
[356542533,1742637062631,-500.0,0.00047671,120]
[356542534,1742637062641,-500.0,0.00047671,120]
[356542535,1742637062651,-751.46,0.00047671,120]
[356542536,1742637062661,-1642.39,0.00047671,120]
[356542537,1742637062671,-654.04,0.00047671,120]
[356542538,1742637062681,-674.52,0.00047671,120]
[356542539,1742637062691,-520.54,0.00047671,120]
[356542540,1742637062701,-500.0,0.00047671,120]
[356542541,1742637062711,-500.0,0.00047671,120]
[356542542,1742637062721,-201.95889603,0.00047671,30]
[356542543,1742637062731,-500.0,0.00047671,120]
[356542544,1742637062740,-781.34,0.00047671,120]
[356542545,1742637062750,-500.0,0.00047671,120]
[356542546,1742637062760,-532.16,0.00047671,120]
[356542547,1742637062770,-500.0,0.00047671,120]
[356542548,1742637062780,-500.0,0.00047671,120]
[356542549,1742637062790,-601.78,0.00047671,120]
[356542550,1742637062800,-500.0,0.00047671,120]
[356542551,1742637062809,-691.76,0.00047671,120]
[356542552,1742637062819,-500.0,0.00047671,120]
[356542553,1742637062828,-802.29,0.00047671,120]
[356542554,1742637062838,-500.0,0.00047671,120]
[356542555,1742637062848,-500.0,0.00047671,120]
[356542556,1742637062858,-500.0,0.00047671,120]
[356542557,1742637062867,-580.53,0.00047671,120]
[356542558,1742637062877,-2210.41,0.00047671,120]
[356542559,1742637062886,-252.24006147,0.00047671,120]
[356542560,1742637062896,-500.0,0.00047671,120]
[356542561,1742637062905,-904.56,0.00047671,120]
[356542562,1742637062915,-500.0,0.00047671,120]
[356542563,1742637062924,-500.0,0.00047671,120]
[356542564,1742637062934,-793.91,0.00047671,120]
[356542565,1742637062943,-706.55,0.00047671,120]
[356542566,1742637062953,-834.3,0.00047671,120]
[356542567,1742637062963,-500.0,0.00047671,120]
[356542568,1742637062972,-671.78,0.00047671,120]
[356542569,1742637062982,-500.0,0.00047671,120]
[356542570,1742637062992,-500.0,0.00047671,120]
[356542571,1742637063001,-500.0,0.00047671,120]
[356542572,1742637063011,-500.0,0.00047671,120]
[356542573,1742637063020,-1807.75,0.00047671,120]
[356542574,1742637063030,-500.0,0.00047671,120]
[356542575,1742637063040,-500.0,0.00047671,120]
[356542576,1742637063050,-842.88,0.00047671,120]
[356542577,1742637063060,-500.0,0.00047671,120]
[356542578,1742637063070,-500.0,0.00047671,120]
[356542579,1742637063080,-500.0,0.00047671,120]
[356542580,1742637063090,-350.0,0.00047671,120]
[356542581,1742637063100,-965.16,0.00047671,120]
[356542582,1742637063111,-591.6,0.00047671,120]
[356542583,1742637063121,-1371.05,0.00047671,120]
[356542584,1742637063131,-1325.26,0.00047671,120]
[356542585,1742637063140,-558.56,0.00047671,120]
[356542586,1742637063150,-874.61,0.00047671,120]
[356542587,1742637063160,-902.88,0.00047671,120]
[356542588,1742637063170,-509.55,0.00047671,120]
[356542589,1742637063180,-500.0,0.00047671,120]
[356542590,1742637063190,-500.0,0.00047671,120]
[356542591,1742637063200,-500.0,0.00047671,120]
[356542592,1742637063210,-937.33,0.00047671,120]
[356542593,1742637063221,-500.0,0.00047671,120]
[356542594,1742637063231,-500.0,0.00047671,120]
[356542595,1742637063241,-404.12768673,0.00047671,120]
[356542596,1742637063251,-1062.3,0.00047671,120]
[356542597,1742637063261,-600.78,0.00047671,120]
[356542598,1742637063271,-664.64,0.00047671,120]
[356542599,1742637063282,-668.71,0.00047671,120]
[356542600,1742637063292,-564.64,0.00047671,120]
[356542601,1742637063302,-1070.64,0.00047671,120]
[356542602,1742637063312,-979.48,0.00047671,120]
[356542603,1742637063323,-800.83,0.00047671,120]
[356542604,1742637063337,-500.0,0.00047671,120]
[356542605,1742637063347,-698.39,0.00047671,120]
[356542606,1742637063358,-500.0,0.00047671,120]
[356542607,1742637063369,-680.79,0.00047671,120]
[356542608,1742637063380,-514.68,0.00047671,120]
[356542609,1742637063391,-536.4,0.00047671,120]
[356542610,1742637063401,-500.0,0.00047671,120]
[356542611,1742637063412,-500.0,0.00047671,120]
[356542612,1742637063423,-500.0,0.00047671,120]
[356542613,1742637063433,-500.0,0.00047671,120]
[356542614,1742637063443,-500.0,0.00047671,120]
[356542615,1742637063453,-661.88,0.00047671,120]
[356542616,1742637063464,-500.0,0.00047671,120]
[356542617,1742637063475,-500.0,0.00047671,120]
[356542618,1742637063485,-500.0,0.00047671,120]
[356542619,1742637063495,-500.0,0.00047671,120]
[356542620,1742637063505,-730.9,0.00047671,120]
[356542621,1742637063515,-1058.49,0.00047671,120]
[356542622,1742637063525,-500.0,0.00047671,120]
[356542623,1742637063535,-1233.22,0.00047671,120]
[356542624,1742637063545,-1327.63,0.00047671,120]
[356542625,1742637063555,-520.32,0.00047671,120]
[356542626,1742637063565,-896.4,0.00047671,120]
[356542627,1742637063575,-545.76081846,0.00047671,120]
[356542628,1742637063585,-1347.94,0.00047671,120]
[356542629,1742637063595,-597.81,0.00047671,120]
[356542630,1742637063605,-500.0,0.00047671,120]
[356542631,1742637063615,-788.73,0.00047671,120]
[356542632,1742637063625,-500.0,0.00047671,120]
[356542633,1742637063636,-500.0,0.00047671,120]
[356542634,1742637063646,-2023.49,0.00047671,120]
[356542635,1742637063657,-625.69,0.00047671,120]
[356542636,1742637063667,-163.84156717,0.00047671,120]
[356542637,1742637063677,-1415.42,0.00047671,120]
[356542638,1742637063687,-556.5,0.00047671,120]
[356542639,1742637063697,-839.81,0.00047671,120]
[356542640,1742637063707,-500.0,0.00047671,120]
[356542641,1742637063717,-1500.0,0.00047671,120]
[356542642,1742637063727,-813.54,0.00047671,120]
[356542643,1742637063737,-570.18,0.00047671,120]
[356542644,1742637063747,-500.0,0.00047671,120]
[356542645,1742637063757,-500.0,0.00047671,120]
[356542646,1742637063767,-500.0,0.00047671,120]
[356542647,1742637063776,-500.0,0.00047671,120]
[356542648,1742637063787,-621.41,0.00047671,120]
[356542649,1742637063796,-300.0,0.00047671,120]
[356542650,1742637063807,-713.81,0.00047671,120]
[356542651,1742637063817,-500.0,0.00047671,120]
[356542652,1742637063827,-500.0,0.00047671,120]
[356542653,1742637064059,-1159.44,0.00047671,10]
[356542654,1742637064068,-639.03,0.00047671,120]
[356542655,1742637064078,-500.0,0.00047671,120]
[356542656,1742637064087,-521.66,0.00047671,120]
[356542657,1742637064097,-1837.38,0.00047671,120]
[356542658,1742637064107,-500.0,0.00047671,120]
[356542659,1742637064116,-500.0,0.00047671,120]
[356542660,1742637064126,-500.0,0.00047671,120]
[356542661,1742637064135,-500.0,0.00047671,120]
[356542662,1742637064145,-500.0,0.00047671,120]
[356542663,1742637064154,-500.0,0.00047671,120]
[356542664,1742637064164,-500.0,0.00047671,120]
[356542665,1742637064174,-872.68,0.00047671,120]
[356542666,1742637064185,-500.0,0.00047671,120]